{"text_format":"3","workbook":"xlsx","n_sheets":1,"sheets":["Sheet1"],"not_rendered":{"defined_names":1},"read":"whole","date_system":"1900"}

{"sheet":"Sheet1","index":0,"n_rows":29,"n_cols":9,"rows_kept":29,"merged":[[0,0,0,8],[1,0,1,8],[2,0,2,4],[2,5,2,8],[3,0,3,1],[3,2,3,8],[4,0,4,1],[4,2,4,8],[5,1,5,2],[8,0,9,0],[8,1,9,1],[8,4,9,4],[8,5,9,5],[10,0,12,0],[10,5,11,5],[10,6,11,6],[11,1,12,1],[14,0,15,0],[14,1,15,1],[16,0,19,0],[18,1,19,1],[26,0,26,7],[27,0,27,7],[28,0,28,7]]}
["营销类云数字展厅制作报价清单"]
["项目名称：【城发天悦湾项目云数字展厅制作】"]
["甲方单位名称：【福建东南设计集团有限公司房地产分公司】",{"$nulls":4},"乙方单位名称(盖章）：【】"]
["项目实施期限",null,"暂定【 2022】年【6 】月【20】日-【2023 】年【 6】月【19】日"]
["项目询价要求",null,"1、经与贵公司接洽，在充分了解并研究【城发天悦湾项目云数字展厅制作】的供货期、质量、付款条件、质量标准等基本要求后，我司自愿参加本次报价；\n2、报价单组成：①报价函清单（格式甲方提供）②营业执照及资质证书（如有）③其他材料以招标公告上要求为准；\n3、报价函、清单、资质文件等一并打印盖章【1份】后密封报价，所有文件必须盖章；\n4、报价有效期【360天】"]
["模块","工作内容",null,"需求实现","制作条件及相关说明","单位","数量","单价","小计"]
["苹果ipad\n（基础框架）","基础框架构建","ipad整体架构，VI设计与功能交互","搭建ipad框架结构，根据项目VI设计ipad整体风格，结合内容制作加入相应的功能交互。\n支持自定义，框架定制自由度高，可调整度高。","——","每项目每套",1,null,{"$f":"G7*H7","v":0}]
["品牌页","品牌楼书\n项目楼书\n文化楼书","标准版电子楼书","根据城发集团-核电地块项目-三明城市文化，分板块梳理楼书价值，做动态处理，提升包装展示。\n品牌楼书图文分享的客户端交互感强，非常规的PPT翻页模式。","——","每套",1,null,{"$f":"G8*H8","v":0}]
["区位介绍","动态区位介绍","以三明为中心，辐射三明、沙县、永安等动态区位","引入集团品牌经营历史，突出集团所在区位配套概念，表现集团对大三明区位的经营优势，梳理与周边城市的交通网络（路网、轨道、航空、港口）、N小时生活圈概念。","设计资料需提供区位图的电子版源文件（格式为PSD/AI/CDR）。","每套",1,null,0]
[null,null,"核电地块项目\n动态区位介绍","展示项目周边配套，包含以下价值点的梳理：交通-商业-教育-医疗-公园-文化等。",null,null,1,null,0]
["三维沙盘","区域沙盘\n（虚拟）","区域沙盘\n（15栋以内）","以项目为中心，半径10公里内的区域范围，呈现项目主体位置与周边配套建筑，要求周边真实还原度高，质量清晰度高。参数值：2731*2048像素；","技术方提供卫星地图，开发商提供周边需重点表现场景的配套的信息，并在卫星地图标注。建模资料需提供报建通过的总平图、建筑平面、立面、施工图CAD， 效果图，园林设计方案，园建CAD。","每个项目",1,null,0]
[null,"项目沙盘\n（虚拟）","项目沙盘\n（15栋以内）","以项目为中心，全三维鸟瞰查看项目地形和景观。\n参数值：2731*2048像素；","技术方提供卫星地图，开发商需要提供周边需重点表现场景的配套的信息，并在卫星地图标注。建模资料需提供报建通过的总平图、建筑平面、立面、施工图CAD， 效果图，园林设计方案，园建CAD。",{"$nulls":3},0]
[null,null,"增项：日照与风向变化","在制作好的项目沙盘的基础上，展现24小时光照变化与风向动线",null,"每套",1,null,0]
["景观解析","项目景观介绍","项目规划鸟瞰图","展现项目整体规划与布局、园林解析、人车流动线。","建模资料需提供报建通过的建筑平面、立面、施工图CAD， 建筑效果图。","每套",1,null,0]
["园林漫游","园林漫游\n（虚拟）","场景漫游","根据园林景观设计方案及效果图进行渲染，每个场景采用全景图形式表现，提前展示完工后的园林景观。深度还原景观方案，做到高还原，更真实。技术要求交互体验更好，采用的web 3D 交互模式。\n全景参数值：16000*8000像素；","提供报建通过的项目总平面、建筑平面、立面、施工图CAD， 建筑效果图、园林设计方案，园建CAD。","每个场景",1,null,0]
[null,null,"移动漫游","根据园林景观设计方案及效果图进行渲染，场景点之间的切换会根据设定的漫游路径模仿人在园林中行走，提前展示完工后的园林景观。\n全景参数值：16000*8000像素；\n漫游参数值：2731*2048像素；","提供规划图中划出园林路径，默认会带有起点和终点2个场景，漫游路径大约120米，根据常规行走速度的路径渲染。","每条路径\n",2,null,0]
["户型鉴赏","2D户型图","单个户型图展示","适用于仅需展示户型图的项目。","提供户型渲染平面图源文件（带尺寸标注）。","每个户型",5,null,0]
[null,"户型落位图","鸟瞰平面户型落位展示","可清晰查看在售户型所在楼栋位置。技术呈现做到3D空间自然过渡，与户型落位自然衔接；","提供户型落位信息，已制作沙盘则由技术方渲染户型落位底图，未制作沙盘则需甲方提供户型落位底图。","每套",1,null,0]
[null,"样板间\n（虚拟）","虚拟样板间\n（场景漫游）","客厅、餐厅、厨房、卫生间及所有房间的3D建模&720°渲染。深度还原景观方案，做到高还原，更真实。技术要求交互体验更好，采用的web 3D 交互模式。\n实现在iPad的IOS序列帧与web 3D 画面无缝衔接双向交互法。面积：128㎡/142㎡/168㎡/186㎡/232㎡\n参数值：16000*8000像素",null,"/平方米",856,null,0]
[null,null,"阳台爬楼景观","通过镜头上升，在规定楼栋位置从下到上展示不同楼层阳台景观。","已经制作区域、项目沙盘及相应样板间虚拟漫游，阳台外景根据沙盘展现虚拟建模的效果。","每套",1,null,0]
["3D立体工法展示","项目工法展示","工法一览表","呈现30多种不同工法总览表\n技术要求\n1.工法3D立体展示：结合动效，楼体工衔接自然，丝滑过渡；\n2.将工法生长与研发工具相结合，让交互性更强；","项目提供工法及内容部分","每套",1,null,0]
["辅助模块","辅助模块","辅助功能","含：画笔工具、房贷计算器、背景音乐、视频集成","系统内集成功能","每套",1,null,0]
["手机端H5\n移植","H5链接","移植至手机端","基于iPad端制作的内容进行手机端移植，手机端H5可在AI云店、微信公众号、网页中挂载。",null,"每套",1,null,0]
["大屏端移植","大屏端","移植至大屏端","基于iPad端制作的内容进行大屏端移植，案场展示中使用。大屏端移植内容为三维沙盘/区位/景观解析/移动漫游/工法展示。",null,"每套",1,null,0]
["视频嵌入","视频欣赏","app内嵌宣传视频","提供的宣传视频作app植入。","iPad、H5、PC（大屏）","/套",2,null,0]
["案场/在线销讲软件\n（VR带看）","数字展厅传播扩展应用功能","VR带看\n客户雷达，掌握客户需求，洞察客户采购意向\n行为轨迹采集\n销讲过程录音","在VR带看过程中录音，智能匹配浏览轨迹，录音文档自动关联客户，支持在线导出，数据同步在案场移动销售app作录音回放。客户浏览数据实时跟踪，客户卡片及客户信息数据自动导入现有案场业务系统，手机端可实时查看业务数据，后台可提供数据中心及各项业务报表。",null,"年/项目",1,null,0]
["不含税合计",{"$nulls":7},{"$f":"SUM(I7:I26)","v":0}]
["增值税税金（税率   %）"]
["含税总计",{"$nulls":7},{"$f":"I27+I28","v":0}]